[Event "Moscow Youth U19 2019"]
[Site "Moscow"]
[Date "2019.11.21"]
[Round "4.10"]
[White "Sauri, Georgy"]
[Black "Talyzin, Valeriy"]
[Result "0-1"]
[ECO "B06"]
[WhiteElo "1494"]
[BlackElo "1829"]
[Annotator "NA"]
[PlyCount "106"]
[EventDate "2019.11.18"]
[EventType "swiss"]
[EventCountry "RUS"]
[SourceTitle "playchess.com"]
[Source "ChessBase"]
[SourceQuality "1"]
[TimeControl "5400+30"]

1. e4 {[%emt 0:02:00]} g6 {[%emt 0:00:00]} 2. d4 {[%emt 0:00:11]} Bg7 {[%emt 0:00:00]} 3. Nf3 {[%emt 0:00:07]} d6 {[%emt 0:00:00]} 4. Bc4 {[%emt 0:00:09]} Nf6 {[%emt 0:00:29]} 5. Qe2 {[%emt 0:01:23]} c6 {[%emt 0:00:08]} 6. c3 {[%emt 0:00:05]} O-O {[%emt 0:00:12]} 7. Bg5 {[%emt 0:00:26] B06: Modern Defence} (7. Nbd2 Qc7 8. O-O e5 9. dxe5 dxe5 10. Rd1 Nbd7 11. a4 h6 12. b4 Re8 13. Ba2 Nf8 14. Nc4 Be6 {½-½ (39) Hoang,T (2455)-Seres,L (2448) Budapest 2004}) 7... b5 $146 {[%emt 0:01:14]} ({Predecessor:} 7... h6 8. Bf4 d5 9. exd5 Nxd5 10. Be5 Bg4 11. Bxd5 Qxd5 12. Nbd2 Bxe5 13. Qxe5 Nd7 14. Qxd5 cxd5 15. O-O Bxf3 16. Nxf3 e6 17. Rfe1 Rfc8 {½-½ (17) Bitowt,J (1822)-Starczewska,M (1817) Warsaw 2013}) 8. Bd3 {[%emt 0:00:52]} Nbd7 {[%emt 0:01:22]} 9. O-O {[%emt 0:01:21]} Rb8 {[%emt 0:01:12]} 10. b4 {[%emt 0:05:18]} e5 {[%emt 0:05:41]} 11. Nbd2 {[%emt 0:02:25]} h6 {[%emt 0:02:15]} 12. Bxf6 {[%emt 0:03:28]} Bxf6 {[%emt 0:00:35]} 13. Rac1 {[%emt 0:00:39]} Bg7 {[%emt 0:01:08]} 14. Rfd1 {[%emt 0:02:52]} f5 {[%emt 0:06:19]} 15. Nf1 {[%emt 0:05:07]} Qe7 {[%emt 0:02:30]} 16. Ne3 {[%emt 0:13:32]} exd4 {[%emt 0:07:52]} 17. Nxd4 {[%emt 0:00:20]} Bxd4 {[%emt 0:00:03]} 18. cxd4 {[%emt 0:00:22]} fxe4 {[%emt 0:00:04]} 19. Bc2 {[%emt 0:00:19]} d5 {[%emt 0:00:20]} 20. Bb3 {[%emt 0:00:57]} Bb7 {[%emt 0:02:00]} 21. Qg4 {[%emt 0:02:47]} Kh7 {[%emt 0:00:33]} 22. Qh3 {[%emt 0:03:45]} Nf6 {[%emt 0:10:39]} 23. Ng4 {[%emt 0:00:39]} Nxg4 {[%emt 0:00:09]} 24. Qxg4 {[%emt 0:00:05]} Rf7 {[%emt 0:09:43]} 25. Rc3 {[%emt 0:01:55]} Rbf8 {[%emt 0:00:17]} 26. Rf1 {[%emt 0:00:13]} e3 {[%emt 0:02:39]} 27. Bc2 {[%emt 0:00:16]} exf2+ $19 {[%emt 0:00:55]} 28. Kh1 {[%emt 0:00:05]} Qg5 {[%emt 0:01:50]} (28... Rg7 $19 {is more deadly.} 29. Bd3 Qxb4) 29. Qxg5 {[%emt 0:04:00]} hxg5 {[%emt 0:00:07]} 30. Bd1 {[%emt 0:00:57]} Re7 {[%emt 0:00:47]} 31. g3 {[%emt 0:00:54]} Bc8 {[%emt 0:02:24]} 32. Kg2 {[%emt 0:01:05]} Re1 {[%emt 0:00:44]} 33. g4 {[%emt 0:00:06]} Rf4 {[%emt 0:01:36]} 34. Rd3 {[%emt 0:06:11]} Ree4 {[%emt 0:11:49]} 35. Ra3 {[%emt 0:07:08]} Rxd4 {[%emt 0:01:26]} 36. Rxa7+ {[%emt 0:00:11]} Kh6 {[%emt 0:00:05]} 37. h3 {[%emt 0:01:53]} Rf8 {[%emt 0:19:01]} 38. a3 {[%emt 0:03:19]} Rdf4 {[%emt 0:01:19]} 39. Rc7 {[%emt 0:02:21]} d4 {[%emt 0:00:08]} 40. Bc2 {[%emt 0:01:58]} Be6 {[%emt 0:00:18]} 41. Kh2 {[%emt 0:01:10]} Bc4 {[%emt 0:00:38]} 42. Rxc6 {[%emt 0:01:20]} d3 {[%emt 0:02:19]} 43. Bb1 {[%emt 0:00:05]} R4f6 {[%emt 0:00:54]} 44. Rxf6 {[%emt 0:00:19]} Rxf6 {[%emt 0:00:04]} 45. Kg3 {[%emt 0:00:04]} d2 {[%emt 0:00:07]} 46. a4 {[%emt 0:01:23]} Bxf1 {[%emt 0:00:39]} 47. a5 {[%emt 0:00:05]} Bc4 {[%emt 0:00:05]} 48. a6 {[%emt 0:00:10]} Bd5 {[%emt 0:00:04]} 49. Bd3 {[%emt 0:00:08]} f1=N+ {[%emt 0:00:17]} 50. Bxf1 {[%emt 0:00:10]} Rxf1 {[%emt 0:00:04]} 51. a7 {[%emt 0:00:05]} d1=Q {[%emt 0:00:19]} 52. a8=Q {[%emt 0:00:06]} Qf3+ {[%emt 0:00:12]} 53. Kh2 {[%emt 0:00:04]} Rh1# {[%emt 0:00:05]} 0-1

[Event "Moscow Youth U19 2019"]
[Site "Moscow"]
[Date "2019.11.22"]
[Round "5.1"]
[White "Pavlov, Danila"]
[Black "Makarian, Rudik"]
[Result "0-1"]
[ECO "C67"]
[WhiteElo "2369"]
[BlackElo "2405"]
[Annotator "NA"]
[PlyCount "164"]
[EventDate "2019.11.18"]
[EventType "swiss"]
[EventCountry "RUS"]
[SourceTitle "playchess.com"]
[Source "ChessBase"]
[SourceQuality "1"]
[TimeControl "5400+30"]

1. e4 {[%emt 0:00:00]} e5 {[%emt 0:00:00]} 2. Nf3 {[%emt 0:00:00]} Nc6 {[%emt 0:00:00]} 3. Bb5 {[%emt 0:00:00]} Nf6 {[%emt 0:00:00]} 4. O-O {[%emt 0:00:00]} Nxe4 {[%emt 0:00:06]} 5. d4 {[%emt 0:00:10]} Nd6 {[%emt 0:00:05]} 6. Bxc6 {[%emt 0:00:04]} dxc6 {[%emt 0:00:04]} 7. dxe5 {[%emt 0:00:03]} Nf5 {[%emt 0:00:04]} 8. Qxd8+ {[%emt 0:00:04]} Kxd8 {[%emt 0:00:30]} 9. Rd1+ {[%emt 0:01:33]} Ke8 {[%emt 0:00:00]} 10. b3 {[%emt 0:02:37]} Be7 {[%emt 0:00:09]} 11. Bb2 {[%emt 0:04:44]} Nh4 {[%emt 0:04:08]} 12. Nxh4 {[%emt 0:05:04]} Bxh4 {[%emt 0:00:03]} 13. Nd2 {[%emt 0:01:01]} Be7 {[%emt 0:01:33]} 14. Nc4 {[%emt 0:06:33]} Be6 {[%emt 0:09:46]} 15. Ne3 {[%emt 0:05:42]} Bg5 {[%emt 0:07:14]} 16. Bd4 {[%emt 0:10:21]} b6 {[%emt 0:02:58]} 17. b4 {[%emt 0:00:07]} a5 {[%emt 0:09:08]} 18. a3 {[%emt 0:00:05]} Ke7 {[%emt 0:00:45]} 19. Kf1 {[%emt 0:25:45]} Rhd8 {[%emt 0:05:22]} 20. Ke2 {[%emt 0:00:46]} Bxe3 {[%emt 0:18:02]} 21. Kxe3 {[%emt 0:02:37]} Bf5 {[%emt 0:00:47]} 22. c4 {[%emt 0:04:19]} Be6 {[%emt 0:07:40]} 23. c5 {[%emt 0:02:54]} b5 {[%emt 0:00:15]} 24. Bc3 {[%emt 0:01:59]} axb4 {[%emt 0:04:31]} 25. axb4 {[%emt 0:00:38]} Rxd1 {[%emt 0:07:26]} 26. Rxd1 {[%emt 0:00:49]} Bd5 {[%emt 0:01:10]} 27. g3 {[%emt 0:02:17]} Ke6 {[%emt 0:00:31]} 28. Ra1 {[%emt 0:00:11]} Ba2 {[%emt 0:01:14]} 29. Rd1 {[%emt 0:01:17]} Ra3 {[%emt 0:00:19]} 30. Kd4 {[%emt 0:00:36]} Bd5 {[%emt 0:01:14]} 31. Ra1 {[%emt 0:01:16]} Ra4 {[%emt 0:00:04]} 32. h4 {[%emt 0:04:05]} Bf3 {[%emt 0:01:47]} 33. Ke3 {[%emt 0:00:41]} Bd5 {[%emt 0:00:05]} 34. Kd4 {[%emt 0:00:14]} Bg2 {[%emt 0:00:35]} 35. Rg1 {[%emt 0:01:29]} Bf3 {[%emt 0:00:47]} 36. Ra1 {[%emt 0:00:29]} Bd5 {[%emt 0:01:39]} 37. Rd1 {[%emt 0:01:39]} g6 {[%emt 0:01:13]} 38. Ra1 {[%emt 0:00:16]} Bb3 {[%emt 0:00:46]} 39. Rb1 {[%emt 0:00:45]} Ba2 {[%emt 0:00:21]} 40. Rd1 {[%emt 0:03:00]} Ra8 {[%emt 0:00:29]} 41. Ke3 {[%emt 0:00:09]} Bb3 {[%emt 0:17:40]} 42. Rb1 {[%emt 0:01:16]} Bc2 {[%emt 0:00:00]} 43. Rc1 {[%emt 0:00:23]} Bf5 {[%emt 0:00:00]} 44. Rd1 {[%emt 0:01:09]} Bc2 {[%emt 0:00:00]} 45. Rc1 {[%emt 0:00:07]} Ba4 {[%emt 0:00:00]} 46. Ke4 {[%emt 0:04:00]} h5 {[%emt 0:00:00]} 47. Bd4 {[%emt 0:01:32]} Rd8 {[%emt 0:00:00]} 48. Rc3 {[%emt 0:01:40]} Bd1 {[%emt 0:00:00]} 49. Ra3 {[%emt 0:04:57]} Bc2+ {[%emt 0:00:00]} 50. Ke3 {[%emt 0:00:05]} Kd5 {[%emt 0:00:00]} 51. Bb2 {[%emt 0:03:19]} Bf5 {[%emt 0:00:00]} 52. Rc3 {[%emt 0:00:40]} Ra8 {[%emt 0:00:00]} 53. Ba3 {[%emt 0:00:01]} Kxe5 {[%emt 0:00:00]} 54. f3 {[%emt 0:00:06]} Kd5 {[%emt 0:00:00]} 55. Kf4 {[%emt 0:00:23]} Kd4 {[%emt 0:00:00]} 56. Re3 {[%emt 0:01:00]} Kc4 {[%emt 0:00:00]} 57. g4 {[%emt 0:00:08]} Bd3 {[%emt 0:00:00]} 58. Bc1 {[%emt 0:00:48]} Ra2 {[%emt 0:00:17]} 59. Kg5 {[%emt 0:00:09]} Rc2 {[%emt 0:02:13]} 60. Ba3 {[%emt 0:00:53]} Rg2 {[%emt 0:02:17]} 61. Kf4 {[%emt 0:00:34]} Ra2 {[%emt 0:00:31]} 62. Bc1 {[%emt 0:00:06]} Rc2 {[%emt 0:00:03]} 63. Ba3 {[%emt 0:00:12]} Rc3 {[%emt 0:00:20]} 64. Bb2 {[%emt 0:00:05]} Rb3 {[%emt 0:00:04]} 65. Bf6 {[%emt 0:00:11]} Rxb4 {[%emt 0:00:39]} 66. Kg5 {[%emt 0:00:07]} hxg4 {[%emt 0:00:40]} 67. fxg4 {[%emt 0:00:04]} Rb1 {[%emt 0:00:09]} 68. Re7 {[%emt 0:00:37]} Kxc5 {[%emt 0:00:20]} 69. Rxc7 {[%emt 0:00:06]} Rg1 {[%emt 0:01:15]} 70. Rxf7 {[%emt 0:00:20]} Bf5 {[%emt 0:02:05]} 71. Be7+ {[%emt 0:00:39]} Kd5 {[%emt 0:00:13]} 72. Rxf5+ {[%emt 0:01:51]} gxf5 {[%emt 0:00:04]} 73. Kxf5 {[%emt 0:00:01]} Rf1+ {[%emt 0:02:39]} 74. Kg6 {[%emt 0:00:02]} Ke6 {[%emt 0:00:04]} 75. Ba3 {[%emt 0:00:07]} Rf4 {[%emt 0:01:08]} 76. Kg5 {[%emt 0:00:27]} b4 {[%emt 0:00:20]} 77. Bb2 {[%emt 0:01:13]} Rf2 {[%emt 0:00:08]} 78. Ba1 {[%emt 0:00:04]} Kf7 {[%emt 0:00:33]} 79. h5 {[%emt 0:00:04]} b3 {[%emt 0:00:06]} 80. h6 {[%emt 0:00:15]} b2 {[%emt 0:00:11]} 81. h7 {[%emt 0:00:03]} bxa1=Q {[%emt 0:01:01]} 82. h8=Q {[%emt 0:04:57]} Rf5+ {[%emt 0:00:16]} 0-1

[Event "Moscow Youth U19 2019"]
[Site "Moscow"]
[Date "2019.11.22"]
[Round "5.2"]
[White "Vetokhin, Savva"]
[Black "Fedorov, Nikita"]
[Result "1-0"]
[ECO "B09"]
[WhiteElo "2081"]
[BlackElo "2133"]
[Annotator "NA"]
[PlyCount "109"]
[EventDate "2019.11.18"]
[EventType "swiss"]
[EventCountry "RUS"]
[SourceTitle "playchess.com"]
[Source "ChessBase"]
[SourceQuality "1"]
[TimeControl "5400+30"]

1. e4 {[%emt 0:00:00]} d6 {[%emt 0:00:00]} 2. d4 {[%emt 0:00:01]} Nf6 {[%emt 0:00:00]} 3. Nc3 {[%emt 0:00:09]} g6 {[%emt 0:00:00]} 4. f4 {[%emt 0:00:08]} Bg7 {[%emt 0:00:00]} 5. Bd3 {[%emt 0:00:04]} O-O {[%emt 0:00:01]} 6. Nf3 {[%emt 0:00:07]} c6 {[%emt 0:01:18]} 7. O-O {[%emt 0:01:27]} b5 {[%emt 0:04:43]} 8. e5 {[%emt 0:04:37]} dxe5 {[%emt 0:02:16]} 9. dxe5 {[%emt 0:00:49]} Nd5 {[%emt 0:09:08]} 10. Nxd5 {[%emt 0:01:53]} Qxd5 {[%emt 0:00:10]} 11. Qe2 {[%emt 0:00:24]} Qd8 {[%emt 0:24:10]} 12. Be4 {[%emt 0:04:44]} Bg4 {[%emt 0:04:54]} 13. Rd1 {[%emt 0:02:38]} Qc7 {[%emt 0:00:53]} 14. h3 {[%emt 0:01:06]} Bxf3 {[%emt 0:01:19]} 15. Qxf3 {[%emt 0:00:25]} e6 {[%emt 0:01:59]} 16. Be3 {[%emt 0:02:00]} Rc8 {[%emt 0:02:07]} 17. Rd6 {[%emt 0:03:19]} Bf8 {[%emt 0:02:58]} 18. Rad1 {[%emt 0:00:47]} f5 {[%emt 0:05:12]} 19. Bd3 {[%emt 0:04:29]} Bxd6 {[%emt 0:01:24]} 20. exd6 {[%emt 0:00:05]} Qxd6 {[%emt 0:14:20]} 21. Bxf5 {[%emt 0:00:27]} Qe7 {[%emt 0:00:49]} 22. Be4 {[%emt 0:00:33]} Rd8 {[%emt 0:01:27]} 23. Re1 {[%emt 0:06:19]} Nd7 {[%emt 0:02:47]} 24. Bxc6 {[%emt 0:00:56]} Rac8 {[%emt 0:00:24]} 25. Re2 {[%emt 0:08:40]} b4 {[%emt 0:02:14]} 26. Bxa7 {[%emt 0:02:02]} Ne5 {[%emt 0:06:29]} 27. Rxe5 {[%emt 0:01:42]} Qxa7+ {[%emt 0:00:04]} 28. Kh2 {[%emt 0:00:22]} Rd6 {[%emt 0:01:11]} 29. Be4 {[%emt 0:00:50]} Rf8 {[%emt 0:03:51]} 30. h4 {[%emt 0:04:09]} Qf7 {[%emt 0:04:31]} 31. g3 {[%emt 0:00:05]} Rd2+ {[%emt 0:00:35]} 32. Kh3 {[%emt 0:00:07]} Qa7 {[%emt 0:01:57]} 33. h5 {[%emt 0:01:42]} Qg1 {[%emt 0:01:10]} 34. hxg6 {[%emt 0:00:28]} hxg6 {[%emt 0:01:37]} 35. Bxg6 {[%emt 0:02:06]} Rh2+ {[%emt 0:00:30]} 36. Kg4 {[%emt 0:00:01]} Qa7 {[%emt 0:00:47]} 37. Rg5 {[%emt 0:00:55]} Kh8 {[%emt 0:00:24]} 38. Qe4 {[%emt 0:00:40]} Rg8 {[%emt 0:00:45]} 39. Qxe6 {[%emt 0:01:33]} Rh6 {[%emt 0:00:25]} 40. Qe5+ {[%emt 0:01:35]} Rg7 {[%emt 0:00:33]} 41. Bf5 {[%emt 0:00:31]} Qf7 {[%emt 0:00:20]} 42. Qxg7+ {[%emt 0:01:32]} Qxg7 {[%emt 0:00:06]} 43. Rxg7 {[%emt 0:00:04]} Kxg7 {[%emt 0:00:12]} 44. Bd3 {[%emt 0:00:32]} Re6 {[%emt 0:00:35]} 45. Kg5 {[%emt 0:00:13]} Re1 {[%emt 0:00:14]} 46. f5 {[%emt 0:00:50]} Rb1 {[%emt 0:00:20]} 47. f6+ {[%emt 0:00:05]} Kf8 {[%emt 0:00:56]} 48. b3 {[%emt 0:00:16]} Ra1 {[%emt 0:00:25]} 49. g4 {[%emt 0:00:08]} Rxa2 {[%emt 0:00:19]} 50. Kg6 {[%emt 0:00:05]} Ra5 {[%emt 0:01:00]} 51. g5 {[%emt 0:00:09]} Re5 {[%emt 0:00:37]} 52. Kh6 {[%emt 0:00:10]} Re1 {[%emt 0:00:38]} 53. g6 {[%emt 0:00:06]} Rh1+ {[%emt 0:00:10]} 54. Kg5 {[%emt 0:00:04]} Rg1+ {[%emt 0:00:13]} 55. Kf5 {[%emt 0:00:04]} 1-0

[Event "Moscow Youth U19 2019"]
[Site "Moscow"]
[Date "2019.11.22"]
[Round "5.3"]
[White "Beliuga, Mikhail"]
[Black "Gurvich, Vitaly"]
[Result "1/2-1/2"]
[ECO "B07"]
[WhiteElo "1816"]
[BlackElo "2265"]
[Annotator "NA"]
[PlyCount "127"]
[EventDate "2019.11.18"]
[EventType "swiss"]
[EventCountry "RUS"]
[SourceTitle "playchess.com"]
[Source "ChessBase"]
[SourceQuality "1"]
[TimeControl "5400+30"]

1. e4 {[%emt 0:00:00]} d6 {[%emt 0:04:29]} 2. d4 {[%emt 0:00:00]} Nf6 {[%emt 0:00:22]} 3. Nc3 {[%emt 0:00:00]} e5 {[%emt 0:00:21]} 4. dxe5 {[%emt 0:01:00]} dxe5 {[%emt 0:00:04]} 5. Qxd8+ {[%emt 0:00:06]} Kxd8 {[%emt 0:00:05]} 6. Bc4 {[%emt 0:02:42]} Ke8 {[%emt 0:00:12]} 7. f3 {[%emt 0:12:27]} c6 {[%emt 0:01:23]} 8. Be3 {[%emt 0:00:20]} Nbd7 {[%emt 0:06:15]} 9. Nge2 {[%emt 0:07:03]} Bc5 {[%emt 0:02:47]} 10. Bxc5 {[%emt 0:08:05]} Nxc5 {[%emt 0:00:14]} 11. b4 {[%emt 0:01:07]} Ncd7 {[%emt 0:04:03]} 12. Kf2 {[%emt 0:06:28]} Nb6 {[%emt 0:00:27]} 13. Bb3 {[%emt 0:01:18]} Ke7 {[%emt 0:10:34]} 14. Na4 {[%emt 0:16:35]} Nxa4 {[%emt 0:07:58]} 15. Bxa4 {[%emt 0:00:01]} a5 {[%emt 0:00:13]} 16. b5 {[%emt 0:03:23]} cxb5 {[%emt 0:00:08]} 17. Bxb5 {[%emt 0:00:04]} Be6 {[%emt 0:00:03]} 18. c4 {[%emt 0:02:18]} Rac8 {[%emt 0:02:01]} 19. Rab1 {[%emt 0:01:38]} Rhd8 {[%emt 0:02:08]} 20. Ke3 {[%emt 0:02:17]} Nd7 {[%emt 0:01:22]} 21. Rhc1 {[%emt 0:06:33]} Nc5 {[%emt 0:01:04]} 22. Rd1 {[%emt 0:01:40]} g5 {[%emt 0:15:07]} 23. Nc3 {[%emt 0:03:17]} h5 {[%emt 0:00:18]} 24. Rxd8 {[%emt 0:02:39]} Rxd8 {[%emt 0:00:38]} 25. Nd5+ {[%emt 0:00:17]} Bxd5 {[%emt 0:00:31]} 26. cxd5 {[%emt 0:00:22]} f5 {[%emt 0:01:04]} 27. Bc4 {[%emt 0:02:10]} f4+ {[%emt 0:03:00]} 28. Ke2 {[%emt 0:04:20]} Rd6 {[%emt 0:00:10]} 29. Rb5 {[%emt 0:02:11]} b6 {[%emt 0:00:07]} 30. Rb1 {[%emt 0:00:03]} Na4 {[%emt 0:05:30]} 31. Kd2 {[%emt 0:00:55]} g4 {[%emt 0:02:46]} 32. Bb5 {[%emt 0:00:50]} Nc5 {[%emt 0:00:01]} 33. Bc6 {[%emt 0:06:22]} gxf3 {[%emt 0:00:26]} 34. gxf3 {[%emt 0:00:02]} Ne6 {[%emt 0:00:01]} 35. Rxb6 {[%emt 0:03:14]} Nd4 {[%emt 0:00:05]} 36. Kc3 {[%emt 0:00:04]} Nxf3 {[%emt 0:00:19]} 37. Rb7+ {[%emt 0:00:56]} Kf8 {[%emt 0:02:32]} 38. Rh7 {[%emt 0:00:58]} Nd4 {[%emt 0:09:32]} 39. Rxh5 {[%emt 0:03:16]} Nxc6 {[%emt 0:00:09]} 40. dxc6 {[%emt 0:00:02]} Rxc6+ {[%emt 0:00:01]} 41. Kd3 {[%emt 0:01:10]} Rc5 {[%emt 0:00:06]} 42. Rh7 {[%emt 0:00:39]} Rc6 {[%emt 0:05:27]} 43. Rh5 {[%emt 0:01:49]} Re6 {[%emt 0:00:14]} 44. Rf5+ {[%emt 0:00:45]} Ke7 {[%emt 0:01:16]} 45. Ke2 {[%emt 0:00:01]} Kd6 {[%emt 0:00:23]} 46. h4 {[%emt 0:00:32]} Rg6 {[%emt 0:01:46]} 47. h5 {[%emt 0:00:55]} Rg2+ {[%emt 0:00:08]} 48. Kf3 {[%emt 0:00:25]} Rg3+ {[%emt 0:02:00]} 49. Kf2 {[%emt 0:00:16]} Rh3 {[%emt 0:05:16]} 50. Rg5 {[%emt 0:00:36]} a4 {[%emt 0:00:45]} 51. Kg2 {[%emt 0:00:35]} Rh4 {[%emt 0:00:10]} 52. Kf3 {[%emt 0:00:31]} Rh2 {[%emt 0:01:28]} 53. Rg6+ {[%emt 0:00:41]} Kc5 {[%emt 0:00:22]} 54. Kg4 {[%emt 0:00:22]} Kd4 {[%emt 0:01:51]} 55. Ra6 {[%emt 0:00:23]} Kxe4 {[%emt 0:00:44]} 56. Rxa4+ {[%emt 0:00:01]} Ke3 {[%emt 0:00:07]} 57. Ra3+ {[%emt 0:00:32]} Ke4 {[%emt 0:02:29]} 58. Ra4+ {[%emt 0:00:20]} Kd5 {[%emt 0:00:12]} 59. Ra5+ {[%emt 0:00:19]} Ke4 {[%emt 0:02:23]} 60. Ra4+ {[%emt 0:00:01]} Ke3 {[%emt 0:00:10]} 61. Ra3+ {[%emt 0:00:09]} Ke4 {[%emt 0:04:04]} 62. Ra4+ {[%emt 0:00:04]} Kd5 {[%emt 0:00:37]} 63. Ra5+ {[%emt 0:00:01]} Ke4 {[%emt 0:00:30]} 64. Ra4+ {[%emt 0:00:01]} 1/2-1/2

[Event "Moscow Youth U19 2019"]
[Site "Moscow"]
[Date "2019.11.22"]
[Round "5.4"]
[White "Yeritsyan, Aram"]
[Black "Sekoyan, Vachagan"]
[Result "1-0"]
[ECO "B06"]
[WhiteElo "2276"]
[BlackElo "2084"]
[Annotator "NA"]
[PlyCount "53"]
[EventDate "2019.11.18"]
[EventType "swiss"]
[EventCountry "RUS"]
[SourceTitle "playchess.com"]
[Source "ChessBase"]
[SourceQuality "1"]
[TimeControl "5400+30"]

1. e4 {[%emt 0:00:00]} g6 {[%emt 0:00:00]} 2. d4 {[%emt 0:00:00]} Bg7 {[%emt 0:00:00]} 3. Nc3 {[%emt 0:00:00]} d6 {[%emt 0:00:22]} 4. Be2 {[%emt 0:00:51]} a6 {[%emt 0:00:17]} 5. h4 {[%emt 0:00:09]} h5 {[%emt 0:01:20]} 6. Nf3 {[%emt 0:02:25]} b5 {[%emt 0:05:15]} 7. Be3 {[%emt 0:01:06]} Nd7 {[%emt 0:02:04]} 8. Ng5 {[%emt 0:01:58]} Bb7 {[%emt 0:06:37]} 9. Qd2 {[%emt 0:10:48]} Ngf6 {[%emt 0:06:31]} 10. f3 {[%emt 0:00:06]} c5 {[%emt 0:13:54]} 11. dxc5 {[%emt 0:18:28]} dxc5 {[%emt 0:00:42]} 12. Bf4 {[%emt 0:07:56]} e5 {[%emt 0:22:35]} 13. Bg3 {[%emt 0:03:22]} Qe7 {[%emt 0:36:53]} 14. a4 {[%emt 0:00:48]} b4 {[%emt 0:00:00]} 15. Nd1 {[%emt 0:01:29]} a5 {[%emt 0:00:00]} 16. Ne3 {[%emt 0:00:38]} Nb6 {[%emt 0:00:00]} 17. Bb5+ {[%emt 0:09:26]} Nfd7 {[%emt 0:00:00]} 18. O-O-O {[%emt 0:00:09]} O-O-O {[%emt 0:00:00]} 19. Nd5 {[%emt 0:08:18]} Nxd5 {[%emt 0:00:00]} 20. exd5 {[%emt 0:00:04]} Bh6 {[%emt 0:00:00]} 21. f4 {[%emt 0:00:58]} f6 {[%emt 0:00:00]} 22. Ne6 {[%emt 0:01:11]} Rde8 {[%emt 0:00:00]} 23. Kb1 {[%emt 0:01:43]} Rh7 {[%emt 0:01:54]} 24. Qf2 {[%emt 0:02:17]} Qd6 {[%emt 0:02:31]} 25. fxe5 {[%emt 0:11:11]} fxe5 {[%emt 0:00:13]} 26. Qe2 {[%emt 0:00:44]} Bf4 {[%emt 0:01:04]} 27. Nxf4 {[%emt 0:00:09]} 1-0

[Event "Moscow Youth U19 2019"]
[Site "Moscow"]
[Date "2019.11.22"]
[Round "5.5"]
[White "Orlov, Aleksandr"]
[Black "Usov, Aleksandr E."]
[Result "*"]
[ECO "D10"]
[WhiteElo "1965"]
[BlackElo "1930"]
[Annotator "NA"]
[PlyCount "89"]
[EventDate "2019.11.18"]
[EventType "swiss"]
[EventCountry "RUS"]
[SourceTitle "playchess.com"]
[Source "ChessBase"]
[SourceQuality "1"]
[TimeControl "5400+30"]

1. d4 {[%emt 0:00:00]} d5 {[%emt 0:00:00]} 2. c4 {[%emt 0:00:00]} c6 {[%emt 0:00:00]} 3. Nc3 {[%emt 0:00:00]} Nf6 {[%emt 0:00:00]} 4. e3 {[%emt 0:00:00]} Bg4 {[%emt 0:00:26]} 5. Qb3 {[%emt 0:01:26]} Qd7 {[%emt 0:00:14]} (5... Qb6 6. h3 Bf5 7. g4 Qxb3 8. axb3 Bc2 9. g5 Nfd7 10. cxd5 Bxb3 11. Bg2 Nb6 12. dxc6 Nxc6 13. Nf3 {½-½ (66) Potkin,V (2671)-Vallejo Pons,F (2716) Germany 2011}) 6. cxd5 {[%emt 0:01:33] D10: Slav Defence: 3 cxd5 (without early Nf3) and 3 Nc3} cxd5 {[%emt 0:00:05]} 7. Bd3 {[%emt 0:01:02]} Nc6 {[%emt 0:01:49]} 8. f3 $146 {[%emt 0:01:45]} ({Predecessor:} 8. Nge2 e6 9. O-O Rc8 10. Rd1 Be7 11. f3 Bh5 12. Nf4 Bg6 13. Nxg6 hxg6 {1-0 (58) Eranyan,K-Galopoulos,P Urgup 2004}) 8... Bh5 {[%emt 0:00:29]} 9. Nge2 {[%emt 0:00:30]} e6 {[%emt 0:01:43]} 10. O-O {[%emt 0:04:51]} Bg6 {[%emt 0:05:13]} 11. Nf4 {[%emt 0:09:13]} Bd6 {[%emt 0:00:39]} 12. Nce2 {[%emt 0:00:15]} Bxd3 {[%emt 0:03:52]} 13. Nxd3 {[%emt 0:00:59]} e5 {[%emt 0:00:11]} 14. dxe5 {[%emt 0:03:03]} Nxe5 {[%emt 0:00:07]} 15. Ndf4 {[%emt 0:03:06]} O-O {[%emt 0:01:51]} 16. Nc3 {[%emt 0:03:59]} Nc4 {[%emt 0:08:51]} 17. Rd1 {[%emt 0:11:41]} Bxf4 {[%emt 0:01:05]} 18. exf4 {[%emt 0:00:38]} Qc6 {[%emt 0:02:05]} 19. Qb5 {[%emt 0:02:18]} Rfe8 {[%emt 0:02:59]} 20. Qxc6 {[%emt 0:01:53]} bxc6 {[%emt 0:00:08]} 21. b3 {[%emt 0:00:10]} Nd6 {[%emt 0:05:28]} 22. Bb2 {[%emt 0:02:13]} Rab8 {[%emt 0:02:04]} 23. Na4 {[%emt 0:02:12]} Nd7 {[%emt 0:01:18]} 24. Rac1 {[%emt 0:00:51]} Rbc8 {[%emt 0:00:45]} 25. Kf2 {[%emt 0:02:15]} f6 {[%emt 0:00:35]} 26. Rc2 {[%emt 0:01:46]} Nb6 {[%emt 0:03:39]} 27. Nc5 {[%emt 0:01:02]} Nf5 {[%emt 0:02:12]} 28. Bd4 {[%emt 0:02:39]} Kf7 {[%emt 0:00:58]} 29. a4 {[%emt 0:05:42]} Re7 {[%emt 0:01:34]} 30. g4 {[%emt 0:01:56]} Nxd4 {[%emt 0:01:47]} 31. Rxd4 {[%emt 0:00:43]} Nd7 $18 {[%emt 0:01:20]} (31... h5 $14) 32. Nb7 {[%emt 0:07:31]} Kf8 {[%emt 0:06:04]} 33. Nd6 {[%emt 0:00:48]} Rd8 {[%emt 0:02:13]} 34. Rxc6 {[%emt 0:01:43]} Nb8 {[%emt 0:00:06]} 35. Rc8 {[%emt 0:00:07]} Rxc8 {[%emt 0:00:02]} 36. Nxc8 {[%emt 0:00:06]} Rd7 {[%emt 0:00:05]} 37. Rd1 {[%emt 0:14:28]} Ke8 {[%emt 0:46:33]} 38. b4 {[%emt 0:00:23]} d4 {[%emt 0:08:24]} 39. Ke2 {[%emt 0:00:52]} Kd8 {[%emt 0:01:10]} 40. Rc1 {[%emt 0:00:26]} d3+ {[%emt 0:00:15]} 41. Kd2 {[%emt 0:00:10]} Na6 {[%emt 0:01:04]} 42. b5 {[%emt 0:00:56]} Nb4 {[%emt 0:00:05]} 43. b6 {[%emt 0:00:29]} axb6 {[%emt 0:03:54]} 44. Nxb6 {[%emt 0:00:05]} Rb7 {[%emt 0:00:23]} 45. a5 {[%emt 0:14:45]} *